[Event "Titled Tuesday Blitz July 26 Late 2022"]
[White "Leenhouts, Koen"]
[Black "Agasarov, Benik"]
[WhiteFideId "1008439"]
[BlackFideId "13314823"]
[WhiteElo "2409"]
[BlackElo "2616"]
[Result "0-1"]
[Round "07"]
[TimeControl "180+1"]
[Date "2022.07.27"]
[WhiteClock "0:00:13"]
[BlackClock "0:01:39"]

1. e4 {[%clk 0:02:57]}  c6 {[%clk 0:02:56]} 2. d4 {[%clk 0:02:55]}  d5 {[%clk 0:02:57]} 3. e5 {[%clk 0:02:55]}  Bf5 {[%clk 0:02:57]} 4. Nc3 {[%clk 0:02:55]}  e6 {[%clk 0:02:56]} 5. g4 {[%clk 0:02:56]}  Bg6 {[%clk 0:02:56]} 6. Nge2 {[%clk 0:02:54]}  c5 {[%clk 0:02:50]} 7. h4 {[%clk 0:02:52]}  h5 {[%clk 0:02:50]} 8. Nf4 {[%clk 0:02:47]}  Bh7 {[%clk 0:02:50]} 9. g5 {[%clk 0:02:47]}  Ne7 {[%clk 0:02:45]} 10. Qxh5 {[%clk 0:02:42]}  cxd4 {[%clk 0:02:43]} 11. Nb5 {[%clk 0:02:34]}  Ng6 {[%clk 0:02:32]} 12. Nxg6 {[%clk 0:02:29]}  fxg6 {[%clk 0:02:27]} 13. Qg4 {[%clk 0:02:29]}  Bg8 {[%clk 0:02:26]} 14. Be2 {[%clk 0:02:24]}  Nc6 {[%clk 0:02:26]} 15. Bf4 {[%clk 0:02:20]}  Qa5+ {[%clk 0:02:24]} 16. Bd2 {[%clk 0:02:12]}  Bb4 {[%clk 0:02:24]} 17. Nd6+ {[%clk 0:02:10]}  Kd7 {[%clk 0:02:22]} 18. O-O-O {[%clk 0:01:44]}  Nxe5 {[%clk 0:02:15]} 19. Qxd4 {[%clk 0:01:35]}  Bxd2+ {[%clk 0:02:13]} 20. Rxd2 {[%clk 0:01:33]}  Kxd6 {[%clk 0:02:13]} 21. f4 {[%clk 0:01:27]}  Nc6 {[%clk 0:02:06]} 22. Qxg7 {[%clk 0:01:18]}  Qxa2 {[%clk 0:02:05]} 23. Rdd1 {[%clk 0:01:16]}  Rh7 {[%clk 0:02:01]} 24. Qxg6 {[%clk 0:01:10]}  Rc7 {[%clk 0:01:59]} 25. Bf3 {[%clk 0:01:02]}  Qa1+ {[%clk 0:01:57]} 26. Kd2 {[%clk 0:01:00]}  Qxb2 {[%clk 0:01:57]} 27. Rhe1 {[%clk 0:00:34]}  Nd4 {[%clk 0:01:46]} 28. Ke3 {[%clk 0:00:20]}  Qc3+ {[%clk 0:01:43]} 29. Kf2 {[%clk 0:00:14]}  Qxf3+ {[%clk 0:01:42]} 30. Kg1 {[%clk 0:00:15]}  Qg3+ {[%clk 0:01:41]} 31. Kf1 {[%clk 0:00:14]}  Qh3+ {[%clk 0:01:40]} 32. Kf2 {[%clk 0:00:13]}  Rxc2+ {[%clk 0:01:39]} 0-1


[Site "https://www.chess.com"]

[Event "Titled Tuesday Blitz July 26 Late 2022"]
[White "Madaminov, Mukhiddin"]
[Black "Kovacevic, Radmila"]
[WhiteFideId "14210703"]
[BlackFideId "933171"]
[WhiteElo "2011"]
[BlackElo "2157"]
[Result "1-0"]
[Round "07"]
[TimeControl "180+1"]
[Date "2022.07.26"]
[WhiteClock "0:01:56"]
[BlackClock "0:00:03"]

1. d4 {[%clk 0:03:00]}  e5 {[%clk 0:02:59]} 2. dxe5 {[%clk 0:03:00]}  Nc6 {[%clk 0:02:59]} 3. Nf3 {[%clk 0:03:01]}  Qe7 {[%clk 0:02:59]} 4. Nc3 {[%clk 0:03:02]}  Nxe5 {[%clk 0:02:59]} 5. Nd5 {[%clk 0:03:02]}  Nxf3+ {[%clk 0:02:58]} 6. gxf3 {[%clk 0:03:03]}  Qd8 {[%clk 0:02:59]} 7. Bf4 {[%clk 0:03:03]}  d6 {[%clk 0:02:59]} 8. Qd4 {[%clk 0:03:03]}  Be6 {[%clk 0:02:56]} 9. O-O-O {[%clk 0:03:03]}  Ne7 {[%clk 0:02:49]} 10. e4 {[%clk 0:02:51]}  Ng6 {[%clk 0:02:31]} 11. Bg3 {[%clk 0:02:41]}  a6 {[%clk 0:01:21]} 12. h4 {[%clk 0:02:24]}  h5 {[%clk 0:00:41]} 13. f4 {[%clk 0:02:21]}  Bg4 {[%clk 0:00:31]} 14. Re1 {[%clk 0:02:20]}  Qd7 {[%clk 0:00:20]} 15. f5 {[%clk 0:02:14]}  Bf3 {[%clk 0:00:14]} 16. Rg1 {[%clk 0:02:06]}  Ne7 {[%clk 0:00:13]} 17. Qc3 {[%clk 0:02:05]}  Nxd5 {[%clk 0:00:06]} 18. exd5+ {[%clk 0:02:05]}  Be7 {[%clk 0:00:06]} 19. f6 {[%clk 0:02:02]}  gxf6 {[%clk 0:00:04]} 20. Qxf3 {[%clk 0:02:03]}  O-O-O {[%clk 0:00:03]} 21. Bd3 {[%clk 0:02:03]}  Kb8 {[%clk 0:00:03]} 22. Bf5 {[%clk 0:02:02]}  Qe8 {[%clk 0:00:03]} 23. Qe2 {[%clk 0:01:56]} 1-0


[Site "https://www.chess.com"]

[Event "Titled Tuesday Blitz July 26 Late 2022"]
[White "Maksimovic, Bojan"]
[Black "Zhu, Jiner"]
[WhiteFideId "14408120"]
[BlackFideId "8608059"]
[WhiteElo "2453"]
[BlackElo "2281"]
[Result "1-0"]
[Round "07"]
[TimeControl "180+1"]
[Date "2022.07.26"]
[WhiteClock "0:02:11"]
[BlackClock "0:01:27"]

1. e4 {[%clk 0:03:00]}  e5 {[%clk 0:02:58]} 2. Nf3 {[%clk 0:03:00]}  Nc6 {[%clk 0:02:57]} 3. Bb5 {[%clk 0:03:00]}  a6 {[%clk 0:02:56]} 4. Ba4 {[%clk 0:03:00]}  Nf6 {[%clk 0:02:56]} 5. O-O {[%clk 0:03:00]}  b5 {[%clk 0:02:54]} 6. Bb3 {[%clk 0:03:00]}  Be7 {[%clk 0:02:54]} 7. Re1 {[%clk 0:02:59]}  O-O {[%clk 0:02:54]} 8. a4 {[%clk 0:02:59]}  b4 {[%clk 0:02:50]} 9. d3 {[%clk 0:02:59]}  Bb7 {[%clk 0:02:44]} 10. Nbd2 {[%clk 0:02:56]}  d5 {[%clk 0:02:38]} 11. exd5 {[%clk 0:02:55]}  Nxd5 {[%clk 0:02:39]} 12. Nc4 {[%clk 0:02:54]}  Nd4 {[%clk 0:02:17]} 13. Nxd4 {[%clk 0:02:37]}  exd4 {[%clk 0:02:17]} 14. Na5 {[%clk 0:02:37]}  Bc8 {[%clk 0:02:16]} 15. Nc6 {[%clk 0:02:36]}  Qd6 {[%clk 0:02:07]} 16. Bxd5 {[%clk 0:02:36]}  Bf6 {[%clk 0:01:55]} 17. Qf3 {[%clk 0:02:30]}  Kh8 {[%clk 0:01:51]} 18. Bf4 {[%clk 0:02:25]}  Qc5 {[%clk 0:01:50]} 19. Ne5 {[%clk 0:02:18]}  Rb8 {[%clk 0:01:26]} 20. Nxf7+ {[%clk 0:02:12]}  Rxf7 {[%clk 0:01:27]} 21. Bxf7 {[%clk 0:02:13]}  Bb7 {[%clk 0:01:27]} 22. Qxb7 {[%clk 0:02:11]} 1-0


[Site "https://www.chess.com"]

[Event "Titled Tuesday Blitz July 26 Late 2022"]
[White "Martin Carmona, Gaston Manuel"]
[Black "Oro, Luis"]
[WhiteFideId "22284567"]
[BlackFideId "104094"]
[WhiteElo "2162"]
[BlackElo "2360"]
[Result "0-1"]
[Round "07"]
[TimeControl "180+1"]
[Date "2022.07.27"]
[WhiteClock "0:00:17"]
[BlackClock "0:00:09"]

1. e4 {[%clk 0:03:00]}  c5 {[%clk 0:02:57]} 2. Nf3 {[%clk 0:03:00]}  d6 {[%clk 0:02:57]} 3. d4 {[%clk 0:03:00]}  cxd4 {[%clk 0:02:56]} 4. Nxd4 {[%clk 0:03:01]}  Nf6 {[%clk 0:02:56]} 5. Nc3 {[%clk 0:03:02]}  a6 {[%clk 0:02:56]} 6. Be3 {[%clk 0:02:57]}  e5 {[%clk 0:02:55]} 7. Nb3 {[%clk 0:02:57]}  Be7 {[%clk 0:02:55]} 8. f3 {[%clk 0:02:58]}  Be6 {[%clk 0:02:55]} 9. Qd2 {[%clk 0:02:58]}  O-O {[%clk 0:02:56]} 10. O-O-O {[%clk 0:02:59]}  b5 {[%clk 0:02:56]} 11. g4 {[%clk 0:02:58]}  Nbd7 {[%clk 0:02:57]} 12. Rg1 {[%clk 0:02:57]}  b4 {[%clk 0:02:47]} 13. Nd5 {[%clk 0:02:55]}  Bxd5 {[%clk 0:02:47]} 14. exd5 {[%clk 0:02:56]}  Nb6 {[%clk 0:02:46]} 15. Na5 {[%clk 0:02:44]}  Qc7 {[%clk 0:01:39]} 16. Nc6 {[%clk 0:02:41]}  Rfe8 {[%clk 0:01:37]} 17. g5 {[%clk 0:01:52]}  Nfd7 {[%clk 0:01:01]} 18. h4 {[%clk 0:01:45]}  a5 {[%clk 0:00:55]} 19. Bd3 {[%clk 0:01:40]}  Rac8 {[%clk 0:00:49]} 20. Be4 {[%clk 0:01:39]}  Nc4 {[%clk 0:00:48]} 21. Qd3 {[%clk 0:01:22]}  Nxe3 {[%clk 0:00:47]} 22. Qxe3 {[%clk 0:01:23]}  Nc5 {[%clk 0:00:46]} 23. Kb1 {[%clk 0:01:21]}  Bd8 {[%clk 0:00:43]} 24. h5 {[%clk 0:01:20]}  Qd7 {[%clk 0:00:42]} 25. g6 {[%clk 0:01:13]}  fxg6 {[%clk 0:00:42]} 26. hxg6 {[%clk 0:01:14]}  h6 {[%clk 0:00:42]} 27. Qe2 {[%clk 0:01:07]}  Bb6 {[%clk 0:00:39]} 28. Rh1 {[%clk 0:01:04]}  Bd8 {[%clk 0:00:36]} 29. Rh5 {[%clk 0:01:03]}  Rf8 {[%clk 0:00:32]} 30. Qh2 {[%clk 0:01:02]}  Nxe4 {[%clk 0:00:30]} 31. fxe4 {[%clk 0:01:02]}  Qg4 {[%clk 0:00:30]} 32. Re1 {[%clk 0:00:54]}  Qxg6 {[%clk 0:00:24]} 33. Rh3 {[%clk 0:00:54]}  Bg5 {[%clk 0:00:23]} 34. Rg3 {[%clk 0:00:54]}  Qf6 {[%clk 0:00:22]} 35. Qg2 {[%clk 0:00:52]}  Rc7 {[%clk 0:00:21]} 36. b3 {[%clk 0:00:45]}  Qf2 {[%clk 0:00:21]} 37. Qxf2 {[%clk 0:00:44]}  Rxf2 {[%clk 0:00:21]} 38. Reg1 {[%clk 0:00:45]}  a4 {[%clk 0:00:19]} 39. bxa4 {[%clk 0:00:44]}  Rf4 {[%clk 0:00:16]} 40. Rg4 {[%clk 0:00:41]}  Rf2 {[%clk 0:00:14]} 41. a5 {[%clk 0:00:40]}  Kh7 {[%clk 0:00:11]} 42. a6 {[%clk 0:00:40]}  Rc8 {[%clk 0:00:12]} 43. a7 {[%clk 0:00:40]}  Ra8 {[%clk 0:00:12]} 44. Kb2 {[%clk 0:00:31]}  Rf7 {[%clk 0:00:10]} 45. Rh1 {[%clk 0:00:29]}  Be3 {[%clk 0:00:09]} 46. Rh3 {[%clk 0:00:27]}  Bxa7 {[%clk 0:00:09]} 47. Nxb4 {[%clk 0:00:24]}  Bd4+ {[%clk 0:00:08]} 48. c3 {[%clk 0:00:23]}  Bc5 {[%clk 0:00:09]} 49. a3 {[%clk 0:00:22]}  g6 {[%clk 0:00:08]} 50. Rh1 {[%clk 0:00:17]}  h5 {[%clk 0:00:08]} 51. Rg2 {[%clk 0:00:17]}  Raf8 {[%clk 0:00:07]} 52. Re2 {[%clk 0:00:17]}  Rf2 {[%clk 0:00:07]} 53. Re1 {[%clk 0:00:17]}  Rxe2+ {[%clk 0:00:07]} 54. Rxe2 {[%clk 0:00:18]}  h4 {[%clk 0:00:07]} 55. a4 {[%clk 0:00:18]}  g5 {[%clk 0:00:08]} 56. Kb3 {[%clk 0:00:17]}  g4 {[%clk 0:00:08]} 57. a5 {[%clk 0:00:17]}  h3 {[%clk 0:00:09]} 58. Nd3 {[%clk 0:00:18]}  g3 {[%clk 0:00:08]} 59. Nxc5 {[%clk 0:00:16]}  dxc5 {[%clk 0:00:08]} 60. d6 {[%clk 0:00:16]}  g2 {[%clk 0:00:09]} 61. Re1 {[%clk 0:00:17]}  h2 {[%clk 0:00:09]} 0-1


[Site "https://www.chess.com"]

[Event "Titled Tuesday Blitz July 26 Late 2022"]
[White "Paravyan, David"]
[Black "Schwabeneder, Florian"]
[WhiteFideId "4194985"]
[BlackFideId "1626191"]
[WhiteElo "2569"]
[BlackElo "2275"]
[Result "1-0"]
[Round "07"]
[TimeControl "180+1"]
[Date "2022.07.26"]
[WhiteClock "0:01:39"]
[BlackClock "0:00:01"]

1. e4 {[%clk 0:03:00]}  e6 {[%clk 0:02:57]} 2. d4 {[%clk 0:03:00]}  d5 {[%clk 0:02:58]} 3. Nc3 {[%clk 0:03:01]}  Nc6 {[%clk 0:02:58]} 4. e5 {[%clk 0:03:00]}  f6 {[%clk 0:02:57]} 5. Bb5 {[%clk 0:03:00]}  Bd7 {[%clk 0:02:56]} 6. Nf3 {[%clk 0:02:54]}  a6 {[%clk 0:02:55]} 7. Bxc6 {[%clk 0:02:55]}  Bxc6 {[%clk 0:02:56]} 8. h4 {[%clk 0:02:55]}  Qd7 {[%clk 0:02:51]} 9. h5 {[%clk 0:02:55]}  Qf7 {[%clk 0:02:22]} 10. Bd2 {[%clk 0:02:55]}  h6 {[%clk 0:02:09]} 11. Qe2 {[%clk 0:02:54]}  Ne7 {[%clk 0:02:06]} 12. O-O-O {[%clk 0:02:55]}  O-O-O {[%clk 0:02:05]} 13. Kb1 {[%clk 0:02:55]}  Bd7 {[%clk 0:02:01]} 14. a3 {[%clk 0:02:54]}  Nc6 {[%clk 0:01:51]} 15. Bf4 {[%clk 0:02:54]}  f5 {[%clk 0:01:35]} 16. Nh4 {[%clk 0:02:48]}  Ne7 {[%clk 0:01:19]} 17. g3 {[%clk 0:02:41]}  Be8 {[%clk 0:01:16]} 18. Ng2 {[%clk 0:02:41]}  Nc6 {[%clk 0:01:10]} 19. Na2 {[%clk 0:02:34]}  Na5 {[%clk 0:01:01]} 20. Bc1 {[%clk 0:02:34]}  Nc4 {[%clk 0:01:00]} 21. Nf4 {[%clk 0:02:35]}  Qd7 {[%clk 0:00:55]} 22. g4 {[%clk 0:02:34]}  fxg4 {[%clk 0:00:49]} 23. Qxg4 {[%clk 0:02:35]}  Bf7 {[%clk 0:00:49]} 24. Rh3 {[%clk 0:02:33]}  Rg8 {[%clk 0:00:42]} 25. Ka1 {[%clk 0:02:31]}  Be7 {[%clk 0:00:40]} 26. Ng6 {[%clk 0:02:32]}  Bxg6 {[%clk 0:00:34]} 27. Qxg6 {[%clk 0:02:33]}  Rdf8 {[%clk 0:00:29]} 28. f4 {[%clk 0:02:33]}  Bd8 {[%clk 0:00:23]} 29. a4 {[%clk 0:02:27]}  a5 {[%clk 0:00:19]} 30. b3 {[%clk 0:02:26]}  Nb6 {[%clk 0:00:19]} 31. Bd2 {[%clk 0:02:26]}  Qf7 {[%clk 0:00:16]} 32. Rg1 {[%clk 0:02:24]}  Nd7 {[%clk 0:00:15]} 33. Nc1 {[%clk 0:02:22]}  c6 {[%clk 0:00:15]} 34. Nd3 {[%clk 0:02:22]}  Bb6 {[%clk 0:00:15]} 35. Be3 {[%clk 0:02:20]}  Kd8 {[%clk 0:00:10]} 36. Kb2 {[%clk 0:02:19]}  Qxg6 {[%clk 0:00:10]} 37. Rxg6 {[%clk 0:02:18]}  Ke7 {[%clk 0:00:11]} 38. c3 {[%clk 0:02:17]}  Rf5 {[%clk 0:00:10]} 39. Kc2 {[%clk 0:02:15]}  Kf7 {[%clk 0:00:09]} 40. Rg4 {[%clk 0:02:14]}  Nf8 {[%clk 0:00:07]} 41. Nf2 {[%clk 0:02:09]}  g6 {[%clk 0:00:06]} 42. hxg6+ {[%clk 0:02:09]}  Rxg6 {[%clk 0:00:06]} 43. Rxg6 {[%clk 0:02:09]}  Kxg6 {[%clk 0:00:07]} 44. Ng4 {[%clk 0:02:07]}  h5 {[%clk 0:00:07]} 45. Nf6 {[%clk 0:02:01]}  Bd8 {[%clk 0:00:07]} 46. Ne8 {[%clk 0:02:02]}  h4 {[%clk 0:00:05]} 47. Nd6 {[%clk 0:02:00]}  Rh5 {[%clk 0:00:05]} 48. Nxb7 {[%clk 0:01:58]}  Be7 {[%clk 0:00:05]} 49. b4 {[%clk 0:01:57]}  axb4 {[%clk 0:00:05]} 50. a5 {[%clk 0:01:58]}  Kf5 {[%clk 0:00:06]} 51. a6 {[%clk 0:01:58]}  Nd7 {[%clk 0:00:06]} 52. a7 {[%clk 0:01:58]}  Nb6 {[%clk 0:00:07]} 53. c4 {[%clk 0:01:58]}  dxc4 {[%clk 0:00:06]} 54. d5 {[%clk 0:01:58]}  Nxd5 {[%clk 0:00:07]} 55. a8=Q {[%clk 0:01:58]}  b3+ {[%clk 0:00:07]} 56. Kb2 {[%clk 0:01:57]}  Kg4 {[%clk 0:00:06]} 57. Qe8 {[%clk 0:01:56]}  Rf5 {[%clk 0:00:04]} 58. Rh1 {[%clk 0:01:44]}  Nxe3 {[%clk 0:00:04]} 59. Qg6+ {[%clk 0:01:45]}  Kxf4 {[%clk 0:00:05]} 60. Nd6 {[%clk 0:01:41]}  Rxe5 {[%clk 0:00:04]} 61. Qf7+ {[%clk 0:01:40]}  Kg3 {[%clk 0:00:02]} 62. Qxe7 {[%clk 0:01:39]}  Rd5 {[%clk 0:00:01]} 63. Qxh4+ {[%clk 0:01:39]} 1-0


[Site "https://www.chess.com"]

[Event "Titled Tuesday Blitz July 26 Late 2022"]
[White "Peng, David Yu"]
[Black "Deviprasath, Sharvesh"]
[WhiteFideId "2605376"]
[BlackFideId "30938228"]
[WhiteElo "2166"]
[BlackElo "2102"]
[Result "0-1"]
[Round "07"]
[TimeControl "180+1"]
[Date "2022.07.27"]
[WhiteClock "0:00:07"]
[BlackClock "0:00:12"]

1. e4 {[%clk 0:03:00]}  g6 {[%clk 0:03:00]} 2. d4 {[%clk 0:03:00]}  Bg7 {[%clk 0:03:01]} 3. Nc3 {[%clk 0:03:00]}  d6 {[%clk 0:02:57]} 4. f4 {[%clk 0:02:59]}  a6 {[%clk 0:02:51]} 5. a4 {[%clk 0:02:55]}  Nc6 {[%clk 0:02:44]} 6. d5 {[%clk 0:02:44]}  Nd4 {[%clk 0:02:19]} 7. Be3 {[%clk 0:02:43]}  c5 {[%clk 0:02:19]} 8. Nge2 {[%clk 0:02:39]}  Bg4 {[%clk 0:02:08]} 9. h3 {[%clk 0:02:30]}  Bxe2 {[%clk 0:01:43]} 10. Bxe2 {[%clk 0:02:31]}  Nf6 {[%clk 0:01:41]} 11. O-O {[%clk 0:02:24]}  Nxe2+ {[%clk 0:01:40]} 12. Qxe2 {[%clk 0:02:24]}  O-O {[%clk 0:01:41]} 13. f5 {[%clk 0:01:59]}  Rb8 {[%clk 0:01:35]} 14. a5 {[%clk 0:01:56]}  b5 {[%clk 0:01:17]} 15. axb6 {[%clk 0:01:56]}  Qxb6 {[%clk 0:01:18]} 16. Rfb1 {[%clk 0:01:47]}  Nd7 {[%clk 0:01:04]} 17. Rxa6 {[%clk 0:01:39]}  Qc7 {[%clk 0:01:01]} 18. Raa1 {[%clk 0:00:52]}  Rxb2 {[%clk 0:00:52]} 19. Rxb2 {[%clk 0:00:46]}  Bxc3 {[%clk 0:00:51]} 20. Bc1 {[%clk 0:00:37]}  Ne5 {[%clk 0:00:41]} 21. Ra3 {[%clk 0:00:31]}  Bxb2 {[%clk 0:00:37]} 22. Bxb2 {[%clk 0:00:32]}  Rb8 {[%clk 0:00:37]} 23. Bxe5 {[%clk 0:00:26]}  dxe5 {[%clk 0:00:38]} 24. fxg6 {[%clk 0:00:22]}  hxg6 {[%clk 0:00:28]} 25. Rb3 {[%clk 0:00:22]}  Rb4 {[%clk 0:00:26]} 26. Qf3 {[%clk 0:00:19]}  Kg7 {[%clk 0:00:20]} 27. Qc3 {[%clk 0:00:19]}  Rxe4 {[%clk 0:00:17]} 28. Rb5 {[%clk 0:00:18]}  c4 {[%clk 0:00:16]} 29. Qf3 {[%clk 0:00:17]}  Qa7+ {[%clk 0:00:15]} 30. Kh2 {[%clk 0:00:17]}  Rf4 {[%clk 0:00:15]} 31. Qe2 {[%clk 0:00:15]}  Qd4 {[%clk 0:00:11]} 32. Rb7 {[%clk 0:00:11]}  Rf2 {[%clk 0:00:10]} 33. Qg4 {[%clk 0:00:11]}  Qxg4 {[%clk 0:00:08]} 34. hxg4 {[%clk 0:00:12]}  Kf6 {[%clk 0:00:07]} 35. Rc7 {[%clk 0:00:10]}  Rxc2 {[%clk 0:00:08]} 36. Rc6+ {[%clk 0:00:09]}  Kg5 {[%clk 0:00:07]} 37. Kh3 {[%clk 0:00:10]}  Rc3+ {[%clk 0:00:07]} 38. g3 {[%clk 0:00:10]}  e4 {[%clk 0:00:07]} 39. Rc7 {[%clk 0:00:10]}  Kf6 {[%clk 0:00:07]} 40. Rc6+ {[%clk 0:00:10]}  e6 {[%clk 0:00:08]} 41. dxe6 {[%clk 0:00:10]}  fxe6 {[%clk 0:00:09]} 42. g5+ {[%clk 0:00:11]}  Kf5 {[%clk 0:00:09]} 43. Kh4 {[%clk 0:00:10]}  e3 {[%clk 0:00:10]} 44. g4+ {[%clk 0:00:09]}  Ke5 {[%clk 0:00:11]} 45. Rc5+ {[%clk 0:00:08]}  Kd4 {[%clk 0:00:11]} 46. Rc6 {[%clk 0:00:09]}  e5 {[%clk 0:00:11]} 47. Rxg6 {[%clk 0:00:08]}  e2 {[%clk 0:00:11]} 48. Rd6+ {[%clk 0:00:07]}  Ke4 {[%clk 0:00:12]} 0-1


[Site "https://www.chess.com"]

[Event "Titled Tuesday Blitz July 26 Late 2022"]
[White "Petrovic, Aleksa"]
[Black "Rose, Felix"]
[WhiteFideId "967629"]
[BlackFideId "5105722"]
[WhiteElo "2185"]
[BlackElo "2039"]
[Result "1-0"]
[Round "07"]
[TimeControl "180+1"]
[Date "2022.07.27"]
[WhiteClock "0:00:07"]
[BlackClock "0:00:02"]

1. e4 {[%clk 0:03:00]}  e5 {[%clk 0:02:59]} 2. Nf3 {[%clk 0:03:01]}  Nc6 {[%clk 0:02:59]} 3. Bb5 {[%clk 0:03:01]}  a6 {[%clk 0:02:59]} 4. Ba4 {[%clk 0:03:01]}  Nf6 {[%clk 0:03:00]} 5. O-O {[%clk 0:03:01]}  Be7 {[%clk 0:02:59]} 6. Re1 {[%clk 0:03:01]}  b5 {[%clk 0:02:59]} 7. Bb3 {[%clk 0:03:02]}  d6 {[%clk 0:03:00]} 8. c3 {[%clk 0:03:02]}  O-O {[%clk 0:02:59]} 9. d4 {[%clk 0:03:03]}  Bg4 {[%clk 0:02:59]} 10. Be3 {[%clk 0:03:03]}  exd4 {[%clk 0:02:53]} 11. cxd4 {[%clk 0:03:04]}  Na5 {[%clk 0:02:53]} 12. Bc2 {[%clk 0:03:05]}  c5 {[%clk 0:02:53]} 13. Nbd2 {[%clk 0:02:54]}  Re8 {[%clk 0:02:39]} 14. h3 {[%clk 0:02:52]}  Bh5 {[%clk 0:02:38]} 15. Qb1 {[%clk 0:02:45]}  Bg6 {[%clk 0:02:32]} 16. Nh4 {[%clk 0:02:43]}  cxd4 {[%clk 0:02:12]} 17. Bxd4 {[%clk 0:02:40]}  Nc6 {[%clk 0:02:12]} 18. Be3 {[%clk 0:02:28]}  Bf8 {[%clk 0:01:50]} 19. Nxg6 {[%clk 0:02:25]}  hxg6 {[%clk 0:01:51]} 20. a4 {[%clk 0:02:22]}  Ne5 {[%clk 0:01:40]} 21. Qa2 {[%clk 0:02:17]}  d5 {[%clk 0:01:19]} 22. Bg5 {[%clk 0:01:38]}  dxe4 {[%clk 0:01:04]} 23. Bxe4 {[%clk 0:01:27]}  Rb8 {[%clk 0:00:44]} 24. Rad1 {[%clk 0:01:19]}  Qa5 {[%clk 0:00:39]} 25. f4 {[%clk 0:01:15]}  Nxe4 {[%clk 0:00:33]} 26. Rxe4 {[%clk 0:00:58]}  Nd3 {[%clk 0:00:18]} 27. Rxe8 {[%clk 0:00:49]}  Rxe8 {[%clk 0:00:19]} 28. Nf3 {[%clk 0:00:45]}  Qb6+ {[%clk 0:00:17]} 29. Kh2 {[%clk 0:00:44]}  Qf2 {[%clk 0:00:09]} 30. Bh4 {[%clk 0:00:20]}  Qe3 {[%clk 0:00:06]} 31. Rxd3 {[%clk 0:00:11]}  Qxd3 {[%clk 0:00:05]} 32. Ne5 {[%clk 0:00:12]}  Qf5 {[%clk 0:00:02]} 33. Bg3 {[%clk 0:00:11]}  g5 {[%clk 0:00:02]} 34. Nf3 {[%clk 0:00:06]}  gxf4 {[%clk 0:00:02]} 35. Bh4 {[%clk 0:00:07]} 1-0


[Site "https://www.chess.com"]

[Event "Titled Tuesday Blitz July 26 Late 2022"]
[White "Pinheiro, Iung Alicio de O."]
[Black "Isajevsky, Anton"]
[WhiteFideId "2104350"]
[BlackFideId "4142500"]
[WhiteElo "2283"]
[BlackElo "2510"]
[Result "1-0"]
[Round "07"]
[TimeControl "180+1"]
[Date "2022.07.26"]
[WhiteClock "0:00:40"]
[BlackClock "0:00:01"]

1. e4 {[%clk 0:03:00]}  c5 {[%clk 0:02:57]} 2. Nf3 {[%clk 0:02:59]}  d6 {[%clk 0:02:58]} 3. d4 {[%clk 0:02:57]}  cxd4 {[%clk 0:02:58]} 4. Nxd4 {[%clk 0:02:58]}  Nf6 {[%clk 0:02:58]} 5. Nc3 {[%clk 0:02:58]}  a6 {[%clk 0:02:58]} 6. f3 {[%clk 0:02:58]}  e5 {[%clk 0:02:57]} 7. Nb3 {[%clk 0:02:58]}  Be6 {[%clk 0:02:53]} 8. Be3 {[%clk 0:02:57]}  Be7 {[%clk 0:02:52]} 9. Qd2 {[%clk 0:02:57]}  h5 {[%clk 0:02:51]} 10. Nd5 {[%clk 0:02:55]}  Bxd5 {[%clk 0:02:28]} 11. exd5 {[%clk 0:02:56]}  O-O {[%clk 0:02:20]} 12. Be2 {[%clk 0:02:48]}  a5 {[%clk 0:02:10]} 13. Rc1 {[%clk 0:02:30]}  a4 {[%clk 0:02:09]} 14. Na1 {[%clk 0:02:30]}  Nbd7 {[%clk 0:01:43]} 15. O-O {[%clk 0:02:25]}  Qa5 {[%clk 0:01:28]} 16. Qxa5 {[%clk 0:01:57]}  Rxa5 {[%clk 0:01:28]} 17. c4 {[%clk 0:01:58]}  Bd8 {[%clk 0:01:27]} 18. Kh1 {[%clk 0:01:51]}  Bb6 {[%clk 0:01:25]} 19. Bd2 {[%clk 0:01:51]}  Raa8 {[%clk 0:01:11]} 20. Nc2 {[%clk 0:01:50]}  e4 {[%clk 0:01:02]} 21. Na3 {[%clk 0:01:33]}  exf3 {[%clk 0:00:48]} 22. Bxf3 {[%clk 0:01:31]}  Ne5 {[%clk 0:00:46]} 23. Be2 {[%clk 0:01:31]}  Ne4 {[%clk 0:00:42]} 24. Be1 {[%clk 0:01:28]}  g6 {[%clk 0:00:14]} 25. Nb5 {[%clk 0:01:27]}  Bc5 {[%clk 0:00:09]} 26. b4 {[%clk 0:01:16]}  axb3 {[%clk 0:00:10]} 27. axb3 {[%clk 0:01:16]}  f5 {[%clk 0:00:10]} 28. b4 {[%clk 0:01:16]}  Be3 {[%clk 0:00:10]} 29. Rd1 {[%clk 0:01:10]}  Rac8 {[%clk 0:00:06]} 30. Na3 {[%clk 0:00:57]}  Ra8 {[%clk 0:00:05]} 31. Nc2 {[%clk 0:00:55]}  Bb6 {[%clk 0:00:01]} 32. Nd4 {[%clk 0:00:46]}  Bxd4 {[%clk 0:00:01]} 33. Rxd4 {[%clk 0:00:47]}  Ra1 {[%clk 0:00:02]} 34. Bf3 {[%clk 0:00:44]}  Rfa8 {[%clk 0:00:03]} 35. Bxe4 {[%clk 0:00:44]}  fxe4 {[%clk 0:00:03]} 36. Rxe4 {[%clk 0:00:44]}  R8a4 {[%clk 0:00:04]} 37. c5 {[%clk 0:00:43]}  Kg7 {[%clk 0:00:01]} 38. cxd6 {[%clk 0:00:41]}  Nd3 {[%clk 0:00:02]} 39. d7 {[%clk 0:00:40]}  Ra8 {[%clk 0:00:01]} 40. Re8 {[%clk 0:00:40]} 1-0


[Site "https://www.chess.com"]